[Event "Marienbad Open-A2 2019"]
[Site "Marianske Lazne"]
[Date "2019.01.20"]
[Round "2"]
[White "Kriebel, Tadeas"]
[Black "Kovalev, Andrei"]
[Result "1/2-1/2"]
[ECO "E81"]
[WhiteElo "2519"]
[BlackElo "2520"]
[Annotator "ChessBase"]
[PlyCount "122"]
[EventDate "2019.01.17"]
[EventType "tourn"]
[EventCountry "CZE"]
[SourceTitle "playchess.com"]
[Source "ChessBase"]
[SourceQuality "1"]
[TimeControl "40/5400+30:1800+30"]

1. d4 {[%emt 0:00:00]} Nf6 {[%emt 0:00:00]} 2. c4 {[%emt 0:00:00]} g6 {[%emt 0:00:00]} 3. Nc3 {[%emt 0:00:00]} Bg7 {[%emt 0:00:02]} 4. e4 {[%emt 0:00:00]} d6 {[%emt 0:00:04]} 5. f3 {[%emt 0:00:00]} O-O {[%emt 0:00:08]} 6. Be3 {[%emt 0:00:08]} c6 {[%emt 0:00:08]} 7. Qd2 {[%emt 0:01:33]} a6 {[%emt 0:00:24]} 8. a4 {[%emt 0:00:11]} a5 {[%emt 0:02:16]} 9. Bd3 {[%emt 0:00:05]} e5 {[%emt 0:00:27]} 10. Nge2 {[%emt 0:00:23]} Na6 {[%emt 0:02:01]} 11. Rd1 {[%emt 0:00:17]} Qe7 {[%emt 0:13:29]} 12. O-O {[%emt 0:03:02]} Nb4 {[%emt 0:00:05]} 13. Bb1 {[%emt 0:00:17]} Be6 {[%emt 0:03:59]} 14. b3 {[%emt 0:02:00]} Rfe8 {[%emt 0:03:39]} 15. Kh1 {[%emt 0:15:23]} Bc8 {[%emt 0:08:22]} 16. Bg5 {[%emt 0:08:12]} Qc7 {[%emt 0:03:31]} 17. f4 {[%emt 0:09:58]} exd4 {[%emt 0:00:19]} 18. Nxd4 {[%emt 0:00:05]} h6 {[%emt 0:06:53]} 19. Bh4 {[%emt 0:03:17]} Na6 {[%emt 0:00:06]} 20. e5 {[%emt 0:17:41]} dxe5 {[%emt 0:01:48]} 21. fxe5 {[%emt 0:00:04]} Ng4 {[%emt 0:00:25]} 22. Ne4 {[%emt 0:07:02]} Qxe5 {[%emt 0:01:24]} 23. Nf3 {[%emt 0:00:05]} Qb2 {[%emt 0:06:29]} 24. Qf4 {[%emt 0:05:28]} Bf5 {[%emt 0:09:26]} 25. h3 {[%emt 0:08:16]} Bxe4 {[%emt 0:06:07]} 26. Bxe4 {[%emt 0:00:32]} Nf6 {[%emt 0:03:00]} 27. Bb1 {[%emt 0:04:26]} Nc5 {[%emt 0:04:33]} 28. Rd2 {[%emt 0:04:50]} Qc3 {[%emt 0:03:10]} 29. Rc2 {[%emt 0:00:15]} Ne6 {[%emt 0:03:18]} 30. Qc1 {[%emt 0:02:36]} Qb4 {[%emt 0:01:16]} 31. Bxf6 {[%emt 0:02:09]} Bxf6 {[%emt 0:00:04]} 32. Qxh6 {[%emt 0:00:07]} Bg7 {[%emt 0:00:59]} 33. Qh4 {[%emt 0:00:11]} Qxb3 {[%emt 0:01:08]} 34. Rcf2 {[%emt 0:00:07]} Qe3 {[%emt 0:03:24]} 35. Nh2 {[%emt 0:01:45]} Qg5 {[%emt 0:02:15]} 36. Qe4 {[%emt 0:00:31]} Nd4 {[%emt 0:01:58]} 37. Qd3 {[%emt 0:01:07]} Re7 {[%emt 0:02:45]} 38. Nf3 {[%emt 0:01:11]} Nxf3 {[%emt 0:00:13]} 39. Rxf3 {[%emt 0:00:07]} Rae8 {[%emt 0:01:12]} 40. Rg3 {[%emt 0:00:08]} Qh6 {[%emt 0:02:16]} 41. c5 {[%emt 0:33:01]} Re3 {[%emt 0:35:14]} 42. Rxe3 {[%emt 0:00:00]} Qxe3 {[%emt 0:00:00]} 43. Qc4 {[%emt 0:00:00]} Re6 {[%emt 0:00:00]} 44. Ba2 {[%emt 0:00:00]} Bd4 {[%emt 0:00:00]} 45. Rd1 {[%emt 0:00:34]} Bxc5 {[%emt 0:00:00]} 46. Qf1 {[%emt 0:00:56]} Re7 {[%emt 0:00:00]} 47. Qf6 {[%emt 0:00:33]} Kh7 {[%emt 0:00:00]} 48. Bxf7 {[%emt 0:00:20]} Qg3 {[%emt 0:00:00]} 49. Bg8+ {[%emt 0:01:44]} Kh6 {[%emt 0:00:00]} 50. Qh8+ {[%emt 0:02:02]} Kg5 {[%emt 0:00:00]} 51. Rf1 {[%emt 0:00:04]} Bf2 {[%emt 0:00:55]} 52. Qb2 {[%emt 0:02:03]} Re1 {[%emt 0:00:26]} 53. Qd2+ {[%emt 0:00:20]} Kh5 {[%emt 0:00:28]} 54. Qxa5+ {[%emt 0:00:29]} b5 {[%emt 0:01:18]} 55. Rxe1 {[%emt 0:00:59]} Bxe1 {[%emt 0:00:06]} 56. Qd8 {[%emt 0:00:05]} Qf2 {[%emt 0:04:14]} 57. Be6 {[%emt 0:01:02]} Qf1+ {[%emt 0:01:04]} 58. Kh2 {[%emt 0:00:02]} Qf4+ {[%emt 0:00:09]} 59. Kh1 {[%emt 0:00:04]} Qf1+ {[%emt 0:01:14]} 60. Kh2 {[%emt 0:00:01]} Qf4+ {[%emt 0:00:13]} 61. Kh1 {[%emt 0:00:05]} Qf1+ {[%emt 0:01:03]} 1/2-1/2

[Event "Marienbad Open-A2 2019"]
[Site "Marianske Lazne"]
[Date "2019.01.20"]
[Round "2"]
[White "Swicarz, Maciej"]
[Black "Yeritsyan, Aram"]
[Result "1-0"]
[ECO "A18"]
[WhiteElo "2331"]
[BlackElo "2349"]
[Annotator "ChessBase"]
[PlyCount "159"]
[EventDate "2019.01.17"]
[EventType "tourn"]
[EventCountry "CZE"]
[SourceTitle "playchess.com"]
[Source "ChessBase"]
[SourceQuality "1"]
[TimeControl "40/5400+30:1800+30"]

1. c4 {[%emt 0:00:00]} Nf6 {[%emt 0:00:00]} 2. Nc3 {[%emt 0:00:00]} e6 {[%emt 0:00:00]} 3. e4 {[%emt 0:00:11]} d5 {[%emt 0:00:00]} 4. e5 {[%emt 0:00:16]} d4 {[%emt 0:00:00]} 5. exf6 {[%emt 0:00:09]} dxc3 {[%emt 0:00:00]} 6. bxc3 {[%emt 0:00:16]} Qxf6 {[%emt 0:00:00]} 7. Nf3 {[%emt 0:00:12]} Nc6 {[%emt 0:00:33]} 8. d4 {[%emt 0:00:29]} e5 {[%emt 0:00:33]} 9. d5 {[%emt 0:01:45]} Nb8 {[%emt 0:00:11]} 10. Bg5 {[%emt 0:00:17]} Qg6 {[%emt 0:01:43]} 11. h4 {[%emt 0:00:04]} h6 {[%emt 0:00:03]} 12. h5 {[%emt 0:00:17]} Qd6 {[%emt 0:00:06]} 13. Be3 {[%emt 0:03:28]} Nd7 {[%emt 0:00:58]} 14. Qc2 {[%emt 0:11:22]} Be7 {[%emt 0:07:46]} 15. Rd1 {[%emt 0:07:42]} O-O {[%emt 0:04:09]} 16. g4 {[%emt 0:12:38]} Nc5 {[%emt 0:02:56]} 17. Rg1 {[%emt 0:04:35]} f5 {[%emt 0:00:47]} 18. g5 {[%emt 0:21:05]} e4 {[%emt 0:01:11]} 19. gxh6 {[%emt 0:09:06]} exf3 {[%emt 0:00:15]} 20. hxg7 {[%emt 0:01:16]} Rf6 {[%emt 0:02:18]} 21. h6 {[%emt 0:03:39]} Bd7 {[%emt 0:01:25]} 22. Rd4 {[%emt 0:04:37]} Kh7 {[%emt 0:02:42]} 23. Bf4 {[%emt 0:07:23]} Qb6 {[%emt 0:01:03]} 24. Bh3 {[%emt 0:00:15]} Bd6 {[%emt 0:03:42]} 25. Rg5 {[%emt 0:02:41]} Re8+ {[%emt 0:00:47]} 26. Be3 {[%emt 0:01:23]} Be5 {[%emt 0:14:10]} 27. Rh4 {[%emt 0:01:53]} Qb2 {[%emt 0:15:23]} 28. Qxb2 {[%emt 0:02:37]} Nd3+ {[%emt 0:00:03]} 29. Kd2 {[%emt 0:00:33]} Nxb2 {[%emt 0:00:04]} 30. c5 {[%emt 0:00:55]} b5 {[%emt 0:03:09]} 31. cxb6 {[%emt 0:01:29]} cxb6 {[%emt 0:02:31]} 32. Rb4 {[%emt 0:01:10]} f4 {[%emt 0:01:50]} 33. Bxd7 {[%emt 0:00:37]} fxe3+ {[%emt 0:00:04]} 34. fxe3 {[%emt 0:00:42]} Rd8 {[%emt 0:13:33]} 35. Rxb2 {[%emt 0:00:03]} Rxh6 {[%emt 0:10:46]} 36. Rxe5 {[%emt 0:00:02]} Rh2+ {[%emt 0:00:18]} 37. Kc1 {[%emt 0:00:13]} Rh1+ {[%emt 0:00:22]} 38. Kc2 {[%emt 0:00:04]} Rxd7 {[%emt 0:00:03]} 39. Kd3 {[%emt 0:01:44]} Rf7 {[%emt 0:04:16]} 40. Rf2 {[%emt 0:00:54]} Rg1 {[%emt 0:00:05]} 41. Rh5+ {[%emt 0:03:43]} Kxg7 {[%emt 0:00:04]} 42. Rh3 {[%emt 0:00:07]} Rd1+ {[%emt 0:00:09]} 43. Kc2 {[%emt 0:04:27]} Rxd5 {[%emt 0:00:07]} 44. Rhxf3 {[%emt 0:00:12]} Rxf3 {[%emt 0:00:22]} 45. Rxf3 {[%emt 0:00:02]} Ra5 {[%emt 0:01:30]} 46. Kb3 {[%emt 0:00:46]} Rc5 {[%emt 0:00:59]} 47. a4 {[%emt 0:08:50]} Re5 {[%emt 0:00:47]} 48. Kc4 {[%emt 0:06:36]} Re4+ {[%emt 0:00:33]} 49. Kd5 {[%emt 0:00:15]} Rxa4 {[%emt 0:00:04]} 50. e4 {[%emt 0:00:04]} Ra1 {[%emt 0:01:00]} 51. e5 {[%emt 0:00:19]} Rd1+ {[%emt 0:00:28]} 52. Kc6 {[%emt 0:00:12]} Re1 {[%emt 0:00:44]} 53. Kd6 {[%emt 0:00:02]} b5 {[%emt 0:02:26]} 54. e6 {[%emt 0:01:09]} a5 {[%emt 0:00:41]} 55. e7 {[%emt 0:02:19]} Rd1+ {[%emt 0:00:04]} 56. Kc6 {[%emt 0:01:25]} Re1 {[%emt 0:00:05]} 57. Kxb5 {[%emt 0:02:48]} Re5+ {[%emt 0:00:04]} 58. Kb6 {[%emt 0:00:34]} Rxe7 {[%emt 0:00:08]} 59. c4 {[%emt 0:00:17]} a4 {[%emt 0:00:14]} 60. c5 {[%emt 0:00:14]} Re1 {[%emt 0:00:57]} 61. c6 {[%emt 0:00:42]} Rb1+ {[%emt 0:00:03]} 62. Ka7 {[%emt 0:00:30]} Rb3 {[%emt 0:01:16]} 63. c7 {[%emt 0:02:09]} Rxf3 {[%emt 0:01:16]} 64. c8=Q {[%emt 0:00:02]} Rf6 {[%emt 0:00:09]} 65. Qg4+ {[%emt 0:00:30]} Rg6 {[%emt 0:00:08]} 66. Qd4+ {[%emt 0:00:19]} Rf6 {[%emt 0:00:21]} 67. Qg4+ {[%emt 0:00:26]} Rg6 {[%emt 0:00:04]} 68. Qxa4 {[%emt 0:00:06]} Re6 {[%emt 0:00:04]} 69. Kb7 {[%emt 0:00:25]} Kf6 {[%emt 0:00:03]} 70. Qf4+ {[%emt 0:00:13]} Kg6 {[%emt 0:00:08]} 71. Kc7 {[%emt 0:00:08]} Rf6 {[%emt 0:00:25]} 72. Qg4+ {[%emt 0:00:07]} Kh6 {[%emt 0:00:24]} 73. Kd7 {[%emt 0:00:15]} Kh7 {[%emt 0:00:10]} 74. Ke7 {[%emt 0:00:19]} Rg6 {[%emt 0:00:01]} 75. Qh5+ {[%emt 0:01:15]} Kg7 {[%emt 0:00:04]} 76. Qe5+ {[%emt 0:00:43]} Kg8 {[%emt 0:00:01]} 77. Qd4 {[%emt 0:00:36]} Rh6 {[%emt 0:01:36]} 78. Qg4+ {[%emt 0:00:29]} Kh8 {[%emt 0:00:02]} 79. Kf7 {[%emt 0:00:27]} Rg6 {[%emt 0:00:04]} 80. Kxg6 {[%emt 0:00:15]} 1-0

[Event "Marienbad Open-A2 2019"]
[Site "Marianske Lazne"]
[Date "2019.01.20"]
[Round "2"]
[White "Kulkarni Bhakti"]
[Black "Liu, Guanchu"]
[Result "1-0"]
[ECO "E43"]
[WhiteElo "2303"]
[BlackElo "2425"]
[Annotator "RC"]
[PlyCount "65"]
[EventDate "2019.01.17"]
[EventType "tourn"]
[EventCountry "CZE"]
[SourceTitle "playchess.com"]
[Source "ChessBase"]
[SourceQuality "1"]
[TimeControl "40/5400+30:1800+30"]

1. d4 {[%emt 0:03:46]} Nf6 {[%emt 0:00:36]} 2. c4 {[%emt 0:00:19]} e6 {[%emt 0:00:19]} 3. Nc3 {[%emt 0:00:38]} Bb4 {[%emt 0:00:10]} 4. e3 {[%emt 0:00:31]} b6 {[%emt 0:00:21]} 5. f3 {[%emt 0:00:31]} Ba6 {[%emt 0:03:17]} 6. Bd3 {[%emt 0:03:09]} c5 {[%emt 0:05:10]} 7. Nge2 {[%emt 0:01:52]} Nc6 {[%emt 0:01:10]} 8. O-O {[%emt 0:01:31]} Bxc3 {[%emt 0:00:53]} 9. bxc3 {[%emt 0:03:22]} Na5 {[%emt 0:04:26]} 10. e4 {[%emt 0:08:06]} Bxc4 {[%emt 0:01:15]} 11. Bxc4 {[%emt 0:04:55]} Nxc4 {[%emt 0:00:05]} 12. Qa4 {[%emt 0:01:41]} Na5 {[%emt 0:00:41]} 13. e5 {[%emt 0:12:28]} Nd5 {[%emt 0:02:19]} 14. c4 {[%emt 0:01:55]} Ne7 {[%emt 0:00:24]} 15. dxc5 {[%emt 0:04:20]} Nac6 {[%emt 0:11:05]} 16. Ng3 {[%emt 0:06:01]} Nxe5 {[%emt 0:06:28]} 17. Bb2 {[%emt 0:00:57]} f6 {[%emt 0:01:28]} 18. Rad1 {[%emt 0:01:59]} N5c6 {[%emt 0:01:23]} 19. Rf2 {[%emt 0:04:00]} O-O {[%emt 0:04:48]} 20. Rfd2 {[%emt 0:03:43]} bxc5 {[%emt 0:00:10]} 21. Rxd7 {[%emt 0:01:19]} Qb6 {[%emt 0:00:09]} 22. Ba3 {[%emt 0:03:28]} Rad8 {[%emt 0:16:08]} 23. Ne4 {[%emt 0:08:09]} Rxd7 {[%emt 0:07:19]} 24. Rxd7 {[%emt 0:00:03]} Rd8 {[%emt 0:00:18]} 25. Rxd8+ {[%emt 0:00:37]} Qxd8 {[%emt 0:00:05]} 26. Bxc5 {[%emt 0:00:13]} h6 {[%emt 0:00:04]} 27. Nd6 {[%emt 0:01:49]} Qc7 {[%emt 0:01:04]} 28. Qa3 {[%emt 0:01:29]} Ng6 {[%emt 0:03:28]} 29. Qe3 {[%emt 0:00:49]} Nce5 {[%emt 0:01:16]} 30. Nb5 {[%emt 0:02:18]} Qa5 {[%emt 0:00:22]} 31. a3 {[%emt 0:03:18]} Nxc4 {[%emt 0:01:39]} 32. Qxe6+ {[%emt 0:00:16]} Kh7 {[%emt 0:00:03]} 33. Qxc4 {[%emt 0:00:15]} 1-0

[Event "Marienbad Open-A2 2019"]
[Site "Marianske Lazne"]
[Date "2019.01.21"]
[Round "3"]
[White "Kovalev, Andrei"]
[Black "Swicarz, Maciej"]
[Result "1-0"]
[ECO "B51"]
[WhiteElo "2520"]
[BlackElo "2331"]
[Annotator "ChessBase"]
[PlyCount "45"]
[EventDate "2019.01.17"]
[EventType "tourn"]
[EventCountry "CZE"]
[SourceTitle "playchess.com"]
[Source "ChessBase"]
[SourceQuality "1"]
[TimeControl "40/5400+30:1800+30"]

1. e4 {[%emt 0:00:00]} c5 {[%emt 0:00:00]} 2. Nf3 {[%emt 0:00:04]} d6 {[%emt 0:00:00]} 3. Bb5+ {[%emt 0:00:08]} Nd7 {[%emt 0:00:00]} 4. d4 {[%emt 0:00:07]} cxd4 {[%emt 0:00:02]} 5. Qxd4 {[%emt 0:00:04]} a6 {[%emt 0:00:20]} 6. Bxd7+ {[%emt 0:00:06]} Bxd7 {[%emt 0:00:11]} 7. Bg5 {[%emt 0:00:06]} Qa5+ {[%emt 0:08:08]} 8. Nc3 {[%emt 0:01:00]} Bg4 {[%emt 0:03:22]} 9. b4 {[%emt 0:05:48]} Qd8 {[%emt 0:11:48]} 10. Nd5 {[%emt 0:00:13]} f6 {[%emt 0:05:26]} 11. Be3 {[%emt 0:00:57]} g6 {[%emt 0:08:41]} 12. Qd3 {[%emt 0:05:48]} Kf7 {[%emt 0:05:36]} 13. Bb6 {[%emt 0:02:27]} Qd7 {[%emt 0:01:16]} 14. Nd4 {[%emt 0:00:25]} e5 {[%emt 0:16:37]} 15. f3 {[%emt 0:00:53]} exd4 {[%emt 0:00:50]} 16. fxg4 {[%emt 0:00:08]} Re8 {[%emt 0:08:42]} 17. O-O {[%emt 0:01:28]} Qxg4 {[%emt 0:03:13]} 18. Rf4 {[%emt 0:01:40]} Qc8 {[%emt 0:03:41]} 19. Bxd4 {[%emt 0:03:12]} Bg7 {[%emt 0:01:34]} 20. Raf1 {[%emt 0:00:15]} Re6 {[%emt 0:01:13]} 21. Qb3 {[%emt 0:01:57]} Qd8 {[%emt 0:05:44]} 22. R4f3 {[%emt 0:02:07]} g5 {[%emt 0:01:15]} 23. Rc3 {[%emt 0:00:38]} 1-0

[Event "Marienbad Open-A2 2019"]
[Site "Marianske Lazne"]
[Date "2019.01.21"]
[Round "3"]
[White "Simacek, Pavel"]
[Black "Swayams, Mishra"]
[Result "1/2-1/2"]
[ECO "A05"]
[WhiteElo "2481"]
[BlackElo "2432"]
[Annotator "RC"]
[PlyCount "190"]
[EventDate "2019.01.17"]
[EventType "tourn"]
[EventCountry "CZE"]
[SourceTitle "playchess.com"]
[Source "ChessBase"]
[SourceQuality "1"]
[TimeControl "40/5400+30:1800+30"]

1. Nf3 {[%emt 0:00:00]} Nf6 {[%emt 0:03:13]} 2. b3 {[%emt 0:00:00]} b6 {[%emt 0:03:13]} 3. Bb2 {[%emt 0:00:04]} Bb7 {[%emt 0:00:01]} 4. g3 {[%emt 0:00:09]} g6 {[%emt 0:00:54]} 5. Bg2 {[%emt 0:00:22]} Bg7 {[%emt 0:00:07]} 6. c4 {[%emt 0:03:10]} O-O {[%emt 0:02:34]} 7. O-O {[%emt 0:00:22]} c5 {[%emt 0:03:46]} 8. d4 {[%emt 0:04:59]} cxd4 {[%emt 0:01:47]} 9. Qxd4 {[%emt 0:09:26]} d6 {[%emt 0:00:19]} 10. Qh4 {[%emt 0:03:53]} Nbd7 {[%emt 0:03:05]} 11. Nbd2 {[%emt 0:00:16]} h6 {[%emt 0:02:33]} 12. Qh3 {[%emt 0:14:51]} Nc5 {[%emt 0:10:04]} 13. Bxf6 {[%emt 0:02:30]} exf6 {[%emt 0:00:06]} 14. Rad1 {[%emt 0:03:30]} Qe7 {[%emt 0:02:02]} 15. Nd4 {[%emt 0:03:35]} f5 {[%emt 0:01:54]} 16. Bxb7 {[%emt 0:00:25]} Qxb7 {[%emt 0:00:02]} 17. e3 {[%emt 0:00:26]} Rad8 {[%emt 0:04:28]} 18. Qg2 {[%emt 0:05:47]} d5 {[%emt 0:00:56]} 19. h4 {[%emt 0:08:02]} h5 {[%emt 0:02:47]} 20. Nc2 {[%emt 0:05:36]} Rd7 {[%emt 0:11:12]} 21. cxd5 {[%emt 0:03:27]} Qxd5 {[%emt 0:02:25]} 22. Qxd5 {[%emt 0:00:34]} Rxd5 {[%emt 0:00:02]} 23. Nb4 {[%emt 0:00:20]} Rd7 {[%emt 0:01:18]} 24. Nf3 {[%emt 0:00:15]} Rfd8 {[%emt 0:00:42]} 25. Rxd7 {[%emt 0:02:55]} Rxd7 {[%emt 0:00:02]} 26. Rc1 {[%emt 0:00:10]} Rd6 {[%emt 0:02:44]} 27. Kf1 {[%emt 0:00:07]} Bb2 {[%emt 0:01:14]} 28. Rb1 {[%emt 0:01:06]} Bf6 {[%emt 0:00:46]} 29. Rc1 {[%emt 0:04:48]} Bb2 {[%emt 0:03:10]} 30. Rb1 {[%emt 0:00:05]} Bc3 {[%emt 0:05:44]} 31. Nc2 {[%emt 0:00:13]} Ne4 {[%emt 0:04:50]} 32. Ncd4 {[%emt 0:10:15]} Bxd4 {[%emt 0:09:29]} 33. exd4 {[%emt 0:00:06]} Rc6 {[%emt 0:00:26]} 34. Rb2 {[%emt 0:00:03]} Rc1+ {[%emt 0:00:52]} 35. Ke2 {[%emt 0:00:09]} Kf8 {[%emt 0:00:17]} 36. Ne5 {[%emt 0:07:54]} Ke7 {[%emt 0:01:42]} 37. Nd3 {[%emt 0:00:46]} Rc7 {[%emt 0:01:53]} 38. Ke3 {[%emt 0:02:31]} Kd6 {[%emt 0:00:19]} 39. Nf4 {[%emt 0:02:08]} Rc3+ {[%emt 0:03:46]} 40. Ke2 {[%emt 0:00:04]} Rc1 {[%emt 0:00:15]} 41. Nd3 {[%emt 0:31:07]} Rc7 {[%emt 0:38:19]} 42. Nf4 {[%emt 0:00:00]} b5 {[%emt 0:00:00]} 43. f3 {[%emt 0:00:00]} Nc3+ {[%emt 0:00:00]} 44. Kd3 {[%emt 0:00:00]} b4 {[%emt 0:00:00]} 45. Rc2 {[%emt 0:00:00]} Re7 {[%emt 0:00:00]} 46. a3 {[%emt 0:00:00]} a5 {[%emt 0:00:00]} 47. Rc1 {[%emt 0:00:00]} Rc7 {[%emt 0:00:00]} 48. axb4 {[%emt 0:00:00]} axb4 {[%emt 0:00:00]} 49. Ra1 {[%emt 0:00:00]} Rc6 {[%emt 0:00:00]} 50. Ra5 {[%emt 0:00:00]} Nb1 {[%emt 0:02:24]} 51. Ne2 {[%emt 0:04:48]} Nc3 {[%emt 0:00:07]} 52. Nf4 {[%emt 0:00:10]} Nb1 {[%emt 0:00:01]} 53. Rd5+ {[%emt 0:03:44]} Kc7 {[%emt 0:00:07]} 54. Rc5 {[%emt 0:00:02]} Rxc5 {[%emt 0:00:06]} 55. dxc5 {[%emt 0:00:03]} Kc6 {[%emt 0:00:05]} 56. Ke3 {[%emt 0:00:03]} Na3 {[%emt 0:06:23]} 57. Kd4 {[%emt 0:00:22]} Nc2+ {[%emt 0:00:02]} 58. Kc4 {[%emt 0:00:56]} Ne1 {[%emt 0:00:55]} 59. Nd5 {[%emt 0:00:14]} Nxf3 {[%emt 0:00:04]} 60. Nxb4+ {[%emt 0:00:03]} Kb7 {[%emt 0:00:41]} 61. Kd5 {[%emt 0:02:56]} Nd2 {[%emt 0:00:24]} 62. Nd3 {[%emt 0:00:20]} Nxb3 {[%emt 0:00:13]} 63. Ne5 {[%emt 0:00:03]} Nd2 {[%emt 0:00:39]} 64. Nxf7 {[%emt 0:00:14]} Kc7 {[%emt 0:00:20]} 65. Ne5 {[%emt 0:00:56]} Ne4 {[%emt 0:00:35]} 66. Nxg6 {[%emt 0:00:05]} Nxg3 {[%emt 0:01:02]} 67. Nf4 {[%emt 0:00:03]} Nf1 {[%emt 0:00:30]} 68. Ne6+ {[%emt 0:00:35]} Kc8 {[%emt 0:00:05]} 69. Ke5 {[%emt 0:00:11]} Kd7 {[%emt 0:03:26]} 70. Nd4 {[%emt 0:01:16]} Ne3 {[%emt 0:00:40]} 71. Nxf5 {[%emt 0:00:33]} Ng2 {[%emt 0:00:27]} 72. Kd5 {[%emt 0:00:12]} Nf4+ {[%emt 0:00:31]} 73. Kc4 {[%emt 0:00:45]} Kc7 {[%emt 0:00:38]} 74. Nd4 {[%emt 0:00:33]} Ng6 {[%emt 0:00:30]} 75. Nf3 {[%emt 0:00:10]} Kc6 {[%emt 0:00:20]} 76. Kd4 {[%emt 0:00:06]} Nf4 {[%emt 0:00:14]} 77. Ne5+ {[%emt 0:00:31]} Kc7 {[%emt 0:00:04]} 78. Kc4 {[%emt 0:01:10]} Ng2 {[%emt 0:00:13]} 79. Ng6 {[%emt 0:00:05]} Ne3+ {[%emt 0:00:15]} 80. Kd4 {[%emt 0:01:35]} Ng2 {[%emt 0:00:02]} 81. Kd5 {[%emt 0:00:13]} Ne3+ {[%emt 0:00:30]} 82. Ke4 {[%emt 0:00:04]} Ng2 {[%emt 0:00:20]} 83. Ke5 {[%emt 0:00:27]} Kc6 {[%emt 0:00:20]} 84. Kd4 {[%emt 0:00:03]} Kc7 {[%emt 0:00:16]} 85. Kc3 {[%emt 0:00:29]} Ne3 {[%emt 0:01:54]} 86. Ne5 {[%emt 0:00:19]} Nf5 {[%emt 0:00:20]} 87. Nf3 {[%emt 0:00:05]} Ne7 {[%emt 0:01:10]} 88. Nd4 {[%emt 0:01:32]} Ng6 {[%emt 0:00:25]} 89. Nf5 {[%emt 0:00:05]} Nf4 {[%emt 0:00:43]} 90. Kc4 {[%emt 0:00:22]} Ng6 {[%emt 0:00:36]} 91. Kb5 {[%emt 0:00:08]} Ne5 {[%emt 0:00:46]} 92. Ne7 {[%emt 0:00:08]} Kd7 {[%emt 0:00:41]} 93. Nf5 {[%emt 0:01:29]} Kc7 {[%emt 0:00:26]} 94. Nd4 {[%emt 0:00:09]} Ng6 {[%emt 0:00:15]} 95. Nf5 {[%emt 0:00:35]} Ne5 1/2-1/2

[Event "Marienbad Open-A2 2019"]
[Site "Marianske Lazne"]
[Date "2019.01.21"]
[Round "3"]
[White "Gungl, Theo"]
[Black "Kriebel, Tadeas"]
[Result "1/2-1/2"]
[ECO "C68"]
[WhiteElo "2368"]
[BlackElo "2519"]
[Annotator "ChessBase"]
[PlyCount "68"]
[EventDate "2019.01.17"]
[EventType "tourn"]
[EventCountry "CZE"]
[SourceTitle "playchess.com"]
[Source "ChessBase"]
[SourceQuality "1"]
[TimeControl "40/5400+30:1800+30"]

1. e4 {[%emt 0:00:00]} e5 {[%emt 0:00:00]} 2. Nf3 {[%emt 0:00:00]} Nc6 {[%emt 0:00:00]} 3. Bb5 {[%emt 0:00:00]} a6 {[%emt 0:00:00]} 4. Bxc6 {[%emt 0:00:00]} dxc6 {[%emt 0:00:00]} 5. O-O {[%emt 0:00:00]} Be7 {[%emt 0:00:17]} 6. d3 {[%emt 0:20:19]} f6 {[%emt 0:00:28]} 7. Be3 {[%emt 0:01:31]} Bg4 {[%emt 0:00:23]} 8. Nbd2 {[%emt 0:00:17]} Qd7 {[%emt 0:00:48]} 9. Rb1 {[%emt 0:06:41]} c5 {[%emt 0:06:12]} 10. a3 {[%emt 0:00:58]} a5 {[%emt 0:00:41]} 11. Qe2 {[%emt 0:06:20]} Bd6 {[%emt 0:00:48]} 12. h3 {[%emt 0:11:46]} Bh5 {[%emt 0:06:34]} 13. Rfe1 {[%emt 0:00:49]} Bf7 {[%emt 0:04:57]} 14. c3 {[%emt 0:01:27]} Ne7 {[%emt 0:02:42]} 15. d4 {[%emt 0:00:52]} cxd4 {[%emt 0:01:32]} 16. cxd4 {[%emt 0:00:01]} exd4 {[%emt 0:07:53]} 17. Nxd4 {[%emt 0:07:48]} O-O {[%emt 0:02:06]} 18. Nc4 {[%emt 0:07:02]} Bc5 {[%emt 0:01:10]} 19. Nf5 {[%emt 0:03:23]} Nxf5 {[%emt 0:04:41]} 20. Bxc5 {[%emt 0:00:16]} Rfe8 {[%emt 0:00:12]} 21. Ne3 {[%emt 0:09:25]} Nxe3 {[%emt 0:02:36]} 22. Qxe3 {[%emt 0:01:57]} Rad8 {[%emt 0:00:12]} 23. Qf4 {[%emt 0:04:16]} b6 {[%emt 0:04:48]} 24. Be3 {[%emt 0:00:07]} a4 {[%emt 0:00:33]} 25. f3 {[%emt 0:02:37]} c5 {[%emt 0:00:52]} 26. Qg3 {[%emt 0:01:08]} Bb3 {[%emt 0:02:39]} 27. Qf2 {[%emt 0:00:40]} Qe6 {[%emt 0:06:09]} 28. Re2 {[%emt 0:03:10]} Rd3 {[%emt 0:02:01]} 29. Rbe1 {[%emt 0:04:12]} Red8 {[%emt 0:00:34]} 30. Rd2 {[%emt 0:00:25]} Qe5 {[%emt 0:02:39]} 31. Ree2 {[%emt 0:02:54]} h6 {[%emt 0:09:49]} 32. Rxd3 {[%emt 0:00:10]} Rxd3 {[%emt 0:00:07]} 33. Rd2 {[%emt 0:00:07]} Qd6 {[%emt 0:00:39]} 34. Rxd3 {[%emt 0:00:48]} Qxd3 {[%emt 0:00:05]} 1/2-1/2

[Event "Marienbad Open-A2 2019"]
[Site "Marianske Lazne"]
[Date "2019.01.21"]
[Round "3"]
[White "Yeritsyan, Aram"]
[Black "Kulkarni, Bhakti"]
[Result "0-1"]
[ECO "C47"]
[WhiteElo "2349"]
[BlackElo "2303"]
[Annotator "ChessBase"]
[PlyCount "71"]
[EventDate "2019.01.17"]
[EventType "tourn"]
[EventCountry "CZE"]
[SourceTitle "playchess.com"]
[Source "ChessBase"]
[SourceQuality "1"]
[TimeControl "40/5400+30:1800+30"]

1. e4 e5 {[%emt 0:05:43]} 2. Nf3 {[%emt 0:00:00]} Nc6 {[%emt 0:00:57]} 3. Nc3 {[%emt 0:00:07]} Nf6 {[%emt 0:01:12]} 4. Be2 {[%emt 0:00:05]} Be7 {[%emt 0:03:17]} 5. O-O {[%emt 0:02:02]} O-O {[%emt 0:01:54]} 6. d4 {[%emt 0:00:04]} exd4 {[%emt 0:01:59]} 7. Nxd4 {[%emt 0:00:04]} d6 {[%emt 0:06:15]} 8. Bf4 {[%emt 0:00:53]} Ne5 {[%emt 0:01:37]} 9. Bg3 {[%emt 0:04:39]} Re8 {[%emt 0:01:24]} 10. f4 {[%emt 0:00:21]} Ng6 {[%emt 0:00:49]} 11. Bf3 {[%emt 0:06:13]} Bf8 {[%emt 0:01:44]} 12. Qd2 {[%emt 0:03:25]} c6 {[%emt 0:05:51]} 13. Rae1 {[%emt 0:00:57]} Bg4 {[%emt 0:09:08]} 14. Bxg4 {[%emt 0:12:53]} Nxg4 {[%emt 0:00:04]} 15. Kh1 {[%emt 0:00:03]} Qb6 {[%emt 0:02:40]} 16. Nb3 {[%emt 0:17:13]} Rad8 {[%emt 0:03:15]} 17. h3 {[%emt 0:00:51]} Nf6 {[%emt 0:00:18]} 18. Bf2 {[%emt 0:01:08]} Qc7 {[%emt 0:00:33]} 19. a4 {[%emt 0:07:04]} d5 {[%emt 0:09:36]} 20. e5 {[%emt 0:00:41]} Nd7 {[%emt 0:00:39]} 21. Nd4 {[%emt 0:03:28]} Nb6 {[%emt 0:07:41]} 22. Bg3 {[%emt 0:06:07]} Nc4 23. Qc1 {[%emt 0:01:15]} Bc5 {[%emt 0:06:00]} 24. Nf5 {[%emt 0:09:03]} Qc8 {[%emt 0:03:54]} 25. Nh4 {[%emt 0:01:56]} Be3 {[%emt 0:01:11]} 26. Rxe3 {[%emt 0:09:40]} Nxe3 {[%emt 0:00:11]} 27. Qxe3 {[%emt 0:03:00]} d4 {[%emt 0:00:45]} 28. Qe4 dxc3 29. bxc3 {[%emt 0:01:37]} Nxh4 {[%emt 0:01:51]} 30. Bxh4 {[%emt 0:00:04]} Rd5 {[%emt 0:02:39]} 31. Qe3 {[%emt 0:04:08]} Ra5 {[%emt 0:01:33]} 32. Qd4 {[%emt 0:00:47]} Qe6 {[%emt 0:01:30]} 33. Bg3 {[%emt 0:02:03]} Qd5 {[%emt 0:03:20]} 34. Qb4 {[%emt 0:00:19]} Rc5 {[%emt 0:02:30]} 35. Qxb7 {[%emt 0:02:22]} Rxc3 {[%emt 0:00:09]} 36. Rf2 {[%emt 0:00:09]} 0-1